bitfinex-derivatives/quotes_BNBF0:USTF0_20250401
["timestamp","ask_amount","ask_price","bid_price","bid_amount"]
[1743530103170,1.39667854,609.83,608.97,0.3284234]
[1743530103372,1.39667854,609.82,608.97,0.3284234]
[1743530103569,1.39667854,609.81,608.97,0.3284234]
[1743530103766,1.263,609.86,608.97,0.3284234]
[1743530103767,1.39667854,609.8,608.97,0.3284234]
[1743530104072,1.39667854,609.79,608.97,0.3284234]
[1743530104371,1.39667854,609.78,608.97,0.3284234]
[1743530104569,1.054,609.77,608.97,0.3284234]
[1743530105669,1.39667854,609.76,608.97,0.3284234]
[1743530106072,1.39667854,609.76,609.06,1.22304425]
[1743530106270,1.39667854,609.75,609.06,1.22304425]
[1743530106473,1.39667854,609.76,609.06,1.22304425]
[1743530107074,1.39667854,609.76,608.97,0.3284234]
[1743530108968,1.39667854,609.76,609.09,1.22187509]
[1743530109370,1.39667854,609.75,609.09,1.22187509]
[1743530109578,1.39667854,609.76,609.09,1.22187509]
[1743530109777,1.39667854,609.75,609.09,1.22187509]
[1743530109973,1.39667854,609.76,609.09,1.22187509]
[1743530110278,1.39667854,609.75,609.09,1.22187509]
[1743530110473,1.39667854,609.76,609.09,1.22187509]
[1743530111077,1.054,609.77,608.99,1.22187509]
[1743530111392,1.397964,609.76,608.99,1.22187509]
[1743530111679,1.054,609.77,608.99,1.22187509]
[1743530112180,1.39809496,609.76,608.99,1.22187509]
[1743530112379,1.39809496,609.75,608.99,1.22187509]
[1743530112680,1.39810476,609.74,608.99,1.22187509]
[1743530112880,1.39810476,609.73,608.99,1.22187509]
[1743530113175,1.39810476,609.72,608.99,1.22187509]
[1743530113373,1.054,609.77,608.99,1.22187509]
[1743530113374,1.39810476,609.71,608.99,1.22187509]
[1743530113579,1.054,609.77,608.97,0.3284234]
[1743530113580,1.39810476,609.7,608.97,0.3284234]
[1743530113780,1.39810476,609.69,608.97,0.3284234]
[1743530113979,1.39810476,609.68,608.97,0.3284234]
[1743530114178,1.39810476,609.67,608.97,0.3284234]
[1743530114377,1.39810476,609.66,608.97,0.3284234]
[1743530114578,1.39789007,609.65,608.97,0.3284234]
[1743530114779,1.39789007,609.76,608.97,0.3284234]
[1743530114978,1.39789007,609.75,608.97,0.3284234]
[1743530115179,1.39789007,609.74,608.97,0.3284234]
[1743530115375,1.39789007,609.76,608.97,0.3284234]
[1743530115776,1.054,609.77,608.97,0.3284234]
[1743530116582,0.91,609.76,608.97,0.3284234]
[1743530121486,1.4,609.75,608.97,0.3284234]
[1743530123481,1.4,609.75,609.1,1.22187509]
[1743530124990,0.903,609.74,609.1,1.22187509]
[1743530125690,0.903,609.74,609.05,1.22187509]
[1743530127998,0.903,609.74,608.98,1.22187509]
[1743530130094,0.903,609.74,609.19,1.22187509]
[1743530130495,1.39921846,609.73,609.19,1.22187509]
[1743530130702,1.39921846,609.72,609.19,1.22187509]
[1743530130901,1.39921846,609.71,609.19,1.22187509]
[1743530131095,1.39921846,609.7,609.19,1.22187509]
[1743530131398,1.39921846,609.69,609.19,1.22187509]
[1743530131599,1.39921846,609.68,609.19,1.22187509]
[1743530131801,1.39921846,609.67,609.19,1.22187509]
[1743530132000,1.39921846,609.66,609.19,1.22187509]
[1743530132299,1.39931933,609.65,609.19,1.22187509]
[1743530132498,1.39931933,609.64,609.19,1.22187509]
[1743530132694,1.39931933,609.63,608.97,0.3284234]
[1743530132902,1.39931933,609.62,608.97,0.3284234]
[1743530133101,1.39931933,609.61,608.97,0.3284234]
[1743530133401,1.39931933,609.6,608.86,1.22187509]
[1743530133596,1.39931933,609.59,608.86,1.22187509]
[1743530133902,1.39931933,609.58,608.86,1.22187509]
[1743530134096,1.39931933,609.57,608.86,1.22187509]
[1743530134296,1.39931933,609.56,608.86,1.22187509]
[1743530134493,1.39931933,609.73,608.86,1.22187509]
[1743530134693,0.28557712,609.66,608.86,1.22187509]
[1743530134908,1.39931933,609.65,608.96,1.22187509]
[1743530135099,1.39931933,609.64,608.96,1.22187509]
[1743530135300,1.39931933,609.63,608.96,1.22187509]
[1743530135500,1.39931933,609.62,608.96,1.22187509]
[1743530135693,1.39931933,609.61,608.96,1.22187509]
[1743530135894,1.39931933,609.6,608.96,1.22187509]
[1743530136199,1.39931933,609.59,608.96,1.22187509]
[1743530136503,1.39931933,609.58,608.96,1.22187509]
[1743530136699,1.39931933,609.57,608.96,1.22187509]
[1743530136896,1.39931933,609.56,608.96,1.22187509]
[1743530137104,1.39931933,609.55,608.96,1.22187509]
[1743530137395,1.39931933,609.63,608.96,1.22187509]
[1743530137602,1.39931933,609.62,608.96,1.22187509]
[1743530137795,1.39931933,609.63,608.96,1.22187509]
[1743530138002,1.39931933,609.62,608.81,1.22187509]
[1743530138202,1.39931933,609.63,608.81,1.22187509]
[1743530138599,1.614,609.64,608.81,1.22187509]
[1743530140099,1.614,609.64,608.77,1.22187509]
[1743530140505,1.305,609.63,608.77,1.22187509]
[1743530141307,2.70431933,609.63,608.77,1.22187509]
[1743530141713,1.305,609.63,608.77,1.22187509]
[1743530142505,1.305,609.63,608.62,1.22187509]
[1743530142813,1.305,609.63,608.63,0.32860687]
[1743530149710,1.305,609.63,608.69,1.22187509]
[1743530149912,1.305,609.63,608.7,0.32856908]
[1743530152616,1.614,609.64,608.96,1.22187509]
[1743530153217,1.39620342,609.73,608.96,1.22187509]
[1743530153522,0.903,609.74,608.96,1.22187509]
[1743530153714,2.29920342,609.74,608.96,1.22187509]
[1743530153917,0.903,609.74,608.96,1.22187509]
[1743530154117,2.29920342,609.74,608.96,1.22187509]
[1743530154417,0.903,609.74,608.96,1.22187509]
[1743530154617,2.29914187,609.74,608.96,1.22187509]
[1743530154810,0.903,609.74,608.96,1.22187509]
[1743530155015,1.04,609.73,608.96,1.22187509]
[1743530155515,1.04,609.73,608.74,1.22187509]
[1743530155914,1.04,609.73,608.75,0.32854209]
[1743530156824,1.295,609.72,608.75,0.32854209]
[1743530163530,1.3962065,609.71,608.75,0.32854209]
[1743530163730,1.3962065,609.7,608.75,0.32854209]
[1743530163925,1.295,609.72,608.75,0.32854209]
[1743530163926,1.3962065,609.69,608.75,0.32854209]
[1743530164131,1.3962065,609.68,608.75,0.32854209]
[1743530164330,1.3962065,609.71,608.75,0.32854209]
[1743530164528,1.3962065,609.7,608.75,0.32854209]
[1743530164733,1.295,609.72,608.75,0.32854209]
[1743530164734,1.3962065,609.69,608.75,0.32854209]
[1743530164936,1.3962065,609.68,608.75,0.32854209]
[1743530165137,1.3962065,609.71,608.75,0.32854209]
[1743530165435,1.3962065,609.7,608.96,1.22187509]
[1743530165633,1.3962065,609.69,608.96,1.22187509]
[1743530165829,1.3962065,609.68,608.96,1.22187509]
[1743530166026,1.3962065,609.67,608.96,1.22187509]
[1743530166229,1.3962065,609.71,608.96,1.22187509]
[1743530166434,1.3962065,609.7,608.96,1.22187509]
[1743530166637,1.3962065,609.69,608.96,1.22187509]
[1743530166831,1.3962065,609.68,608.96,1.22187509]
[1743530167028,1.3962065,609.67,608.99,1.22187509]
[1743530167231,1.3962065,609.66,608.99,1.22187509]
[1743530167433,1.3962065,609.71,608.99,1.22187509]
[1743530167633,1.3962065,609.7,608.99,1.22187509]
[1743530167830,1.3962065,609.69,608.99,1.22187509]
[1743530168134,1.3962065,609.68,608.99,1.22187509]
[1743530168430,1.3962065,609.67,608.99,1.22187509]
[1743530168633,1.3962065,609.66,608.99,1.22187509]
[1743530168838,1.3962065,609.65,608.99,1.22187509]
[1743530169039,1.3962065,609.71,608.99,1.22187509]
[1743530169240,1.3962065,609.7,608.99,1.22187509]
[1743530169436,1.3962065,609.69,608.87,1.22187509]
[1743530169637,1.3962065,609.68,608.87,1.22187509]
[1743530169841,1.3962065,609.67,608.87,1.22187509]
[1743530170033,1.3962065,609.66,608.87,1.22187509]
[1743530170234,1.3962065,609.71,608.87,1.22187509]
[1743530170441,1.3962065,609.7,608.87,1.22187509]
[1743530170739,1.3962065,609.69,608.87,1.22187509]
[1743530170935,1.294,609.7,608.87,1.22187509]
[1743530171137,1.294,609.7,608.75,0.32854209]
[1743530171138,1.294,609.7,608.83,1.22187509]
[1743530173541,1.294,609.7,608.75,0.32854209]
[1743530177846,1.39550386,609.69,608.75,0.32854209]
[1743530178145,1.39550386,609.68,608.75,0.32854209]
[1743530178446,1.39550386,609.67,608.75,0.32854209]
[1743530178644,1.39550386,609.66,608.75,0.32854209]
[1743530178845,1.39550386,609.65,608.75,0.32854209]
[1743530179155,1.39550386,609.64,608.75,0.32854209]
[1743530179444,1.39550386,609.63,608.75,0.32854209]
[1743530179639,1.39550386,609.62,608.75,0.32854209]
[1743530179842,1.294,609.7,608.75,0.32854209]
[1743530180449,1.294,609.7,608.79,1.22187509]
[1743530180644,1.294,609.7,608.8,0.32851511]
[1743530182853,1.294,609.7,608.92,1.22187509]
[1743530184151,2.362,609.7,608.92,1.22187509]
[1743530184550,2.362,609.7,608.88,1.22187509]
[1743530185549,1.39523348,609.69,608.88,1.22187509]
[1743530185751,1.39523348,609.68,608.88,1.22187509]
[1743530185952,1.39523348,609.67,608.88,1.22187509]
[1743530186145,1.39523348,609.69,608.88,1.22187509]
[1743530186346,1.39523348,609.68,608.88,1.22187509]
[1743530186648,1.39523348,609.69,608.8,0.32851511]
[1743530186849,1.39523348,609.68,608.8,0.32851511]
[1743530187152,1.39523348,609.69,608.8,0.32851511]
[1743530187352,1.39523348,609.68,608.8,0.32851511]
[1743530187554,1.39523348,609.67,608.8,0.32851511]
[1743530187755,1.239,609.67,608.8,0.32851511]
[1743530188254,1.39523348,609.66,608.8,0.32851511]
[1743530188446,1.39523348,609.65,608.8,0.32851511]
[1743530188650,1.39523348,609.66,608.8,0.32851511]
[1743530188850,1.39523348,609.65,608.8,0.32851511]
[1743530189153,1.39523348,609.66,608.8,0.32851511]
[1743530189449,1.39523348,609.65,608.8,0.32851511]
[1743530189646,1.39523348,609.64,608.8,0.32851511]
[1743530190253,1.39523348,609.63,608.8,0.32851511]
[1743530190450,1.39523348,609.62,608.8,0.32851511]
[1743530190656,1.39523348,609.61,608.8,0.32851511]
[1743530190848,1.39523348,609.6,608.8,0.32851511]
[1743530191047,1.39523348,609.59,608.8,0.32851511]
[1743530191257,1.39523348,609.58,608.8,0.32851511]
[1743530191455,1.39523348,609.57,608.8,0.32851511]
[1743530191657,1.39523348,609.64,608.8,0.32851511]
[1743530191857,1.39523348,609.63,608.8,0.32851511]
[1743530192058,1.39523348,609.62,608.8,0.32851511]
[1743530192259,1.39774952,609.61,608.8,0.32851511]
[1743530192453,1.39774952,609.6,608.8,0.32851511]
[1743530192653,1.39774952,609.59,608.8,0.32851511]
[1743530192854,1.455,609.65,608.8,0.32851511]
[1743530194960,1.455,609.65,608.81,1.22187509]
[1743530196753,0.28558884,609.64,608.81,1.22187509]
[1743530197552,0.28558884,609.64,608.8,0.32851511]
[1743530197553,0.28558884,609.64,608.92,1.22187509]
[1743530199264,1.455,609.65,608.92,1.22187509]
[1743530199662,0.28557595,609.63,608.92,1.22187509]
[1743530200063,0.28557595,609.63,608.8,1.5503902]
[1743530200064,0.28557595,609.63,608.83,1.22187509]
[1743530200957,1.39801688,609.62,608.83,1.22187509]
[1743530201162,1.39801688,609.61,608.83,1.22187509]
[1743530201464,1.39801688,609.6,608.83,1.22187509]
[1743530201665,1.39801688,609.59,608.83,1.22187509]
[1743530201963,1.39801688,609.58,608.83,1.22187509]
[1743530202163,1.39801688,609.57,608.83,1.22187509]
[1743530202465,1.39801688,609.56,608.8,0.32851511]
[1743530202667,1.39801688,609.55,608.8,0.32851511]
[1743530202868,1.39801688,609.54,608.8,0.32851511]
[1743530203064,1.39801688,609.53,608.8,0.32851511]
[1743530203265,1.39801688,609.52,608.8,0.32851511]
[1743530203467,1.39801688,609.58,608.8,0.32851511]
[1743530203660,1.39801688,609.57,608.8,0.32851511]
[1743530203865,1.39801688,609.56,608.8,0.32851511]
[1743530204165,1.39801688,609.55,608.8,0.32851511]
[1743530204362,1.39801688,609.54,608.8,0.32851511]
[1743530204572,1.39801688,609.58,608.8,0.32851511]
[1743530204763,1.39801688,609.57,608.8,0.32851511]
[1743530204969,1.39801688,609.56,608.8,0.32851511]
[1743530205172,1.39801688,609.55,608.8,0.32851511]
[1743530205373,1.39801688,609.54,608.8,0.32851511]
[1743530205570,1.39801688,609.58,608.8,0.32851511]
[1743530205771,1.39801688,609.57,608.8,0.32851511]
[1743530205968,1.39801688,609.56,608.8,0.32851511]
[1743530206166,1.39769444,609.55,608.8,0.32851511]
[1743530206366,1.39769444,609.54,608.8,0.32851511]
[1743530206570,1.39769444,609.63,608.8,0.32851511]
[1743530206770,1.39769444,609.62,608.8,0.32851511]
[1743530206970,1.39769444,609.61,608.8,0.32851511]
[1743530207172,1.39769444,609.6,608.8,0.32851511]
[1743530207372,1.39769444,609.59,608.8,0.32851511]
[1743530207578,1.39769444,609.58,608.8,0.32851511]
[1743530207768,1.39769444,609.57,608.8,0.32851511]
[1743530207964,1.39769444,609.56,608.8,0.32851511]
[1743530208170,1.39769444,609.55,608.8,0.32851511]
[1743530208371,1.39769444,609.54,608.8,0.32851511]
[1743530208571,1.39769444,609.53,608.8,0.32851511]
[1743530208770,1.39769444,609.52,608.8,0.32851511]
[1743530208968,1.39769444,609.51,608.8,0.32851511]
[1743530209175,1.39769444,609.6,608.8,0.32851511]
[1743530209376,1.39769444,609.59,608.8,0.32851511]
[1743530209674,1.39769444,609.58,608.8,0.32851511]
[1743530209873,1.39769444,609.57,608.8,0.32851511]
[1743530210074,1.39769444,609.56,608.8,0.32851511]
[1743530210374,1.39769444,609.55,608.8,0.32851511]
[1743530210574,1.39769444,609.54,608.8,0.32851511]
[1743530210767,1.39769444,609.53,608.8,0.32851511]
[1743530210973,1.39769444,609.52,608.8,0.32851511]
[1743530211173,1.39769444,609.51,608.8,0.32851511]
[1743530211375,1.39769444,609.5,608.8,0.32851511]
[1743530211571,1.39769444,609.49,608.8,0.32851511]
[1743530211772,1.39769444,609.48,608.8,0.32851511]
[1743530212576,1.127,609.49,608.8,0.32851511]
[1743530213979,1.354,609.48,608.8,0.32851511]
[1743530215976,1.354,609.48,608.8,1.54832615]
[1743530217779,1.221,609.47,608.8,0.32851511]
[1743530227188,1.221,609.47,608.83,1.21981104]
[1743530230089,1.221,609.47,608.86,1.21981104]
[1743530232193,1.221,609.47,608.8,0.32851511]
[1743530233496,1.233,609.46,608.8,0.32851511]
[1743530237194,1.233,609.46,608.83,1.21981104]
[1743530239297,1.233,609.46,608.97,1.21981104]
[1743530240999,1.233,609.46,608.98,1.21981104]
[1743530243403,1.233,609.46,608.8,0.32851511]
[1743530243404,1.233,609.46,609.08,1.21981104]
[1743530245906,1.233,609.46,609.09,1.21981104]
[1743530248008,1.233,609.46,609.0,1.21981104]
[1743530250603,1.354,609.48,608.97,1.21981104]
[1743530253604,1.354,609.48,608.84,1.21981104]
[1743530254510,1.789,609.47,608.84,1.21981104]
[1743530254709,1.789,609.47,608.85,0.32848813]
[1743530255412,1.789,609.47,608.86,1.21981104]
[1743530255608,1.789,609.47,608.86,1.54829377]
[1743530257314,1.789,609.47,608.86,0.32848273]
[1743530264015,1.789,609.47,609.04,1.21981104]
[1743530267121,1.789,609.47,609.05,1.21981104]
[1743530268928,1.789,609.47,609.06,1.21981104]
[1743530270427,1.789,609.47,608.91,1.21981104]
[1743530271435,1.446,609.46,608.91,1.21981104]
[1743530273936,1.446,609.46,608.95,1.21981104]
[1743530276433,1.446,609.46,608.86,0.32848273]
[1743530280141,1.43504915,609.46,608.86,0.32848273]
[1743530280440,1.087,609.58,608.86,0.32848273]
[1743530280633,1.127,609.45,608.86,0.32848273]
[1743530281237,1.127,609.45,609.21,1.21981104]
[1743530282840,1.127,609.45,609.23,1.21981104]
[1743530284442,1.127,609.45,609.21,1.21981104]
[1743530286644,1.127,609.45,609.16,1.21981104]
[1743530289541,1.127,609.45,609.39,1.21981104]
[1743530292739,1.127,609.45,609.27,1.21981104]
[1743530293848,1.127,609.45,609.13,1.21981104]
[1743530295142,1.127,609.45,609.1,1.21981104]
[1743530297149,1.127,609.45,609.08,1.21981104]
[1743530299249,1.127,609.45,609.13,1.21981104]
[1743530301352,1.127,609.45,608.9,1.21981104]
[1743530301554,1.127,609.45,608.91,0.32845576]
[1743530303854,1.127,609.45,608.91,1.5482668]
[1743530306056,1.127,609.45,608.98,1.21981104]
[1743530307760,1.127,609.45,608.91,0.32845576]
[1743530307761,1.127,609.45,609.08,1.21981104]
[1743530309657,1.127,609.45,609.0,1.21981104]
[1743530310658,1.087,609.58,609.0,1.21981104]
[1743530312858,1.087,609.58,608.91,0.32845576]
[1743530312859,1.087,609.58,608.92,1.21981104]
[1743530314260,2.641,609.58,608.92,1.21981104]
[1743530314556,2.641,609.58,608.97,1.21981104]
[1743530316859,2.641,609.58,608.93,1.21981104]
[1743530318663,2.641,609.58,608.91,0.32845576]
[1743530322677,2.641,609.58,608.67,1.21981104]
[1743530325473,2.641,609.58,608.55,1.21981104]
[1743530325670,2.641,609.58,608.56,0.32864466]
[1743530328883,0.28564393,609.57,608.56,0.32864466]
[1743530332783,1.554,609.58,608.56,0.32864466]
[1743530333086,0.914,609.57,608.56,0.32864466]
[1743530341091,0.914,609.57,608.56,1.5484557]
[1743530343693,0.914,609.57,608.61,1.21981104]
[1743530343894,0.914,609.57,608.62,0.32861227]
[1743530344292,2.14,609.57,608.62,0.32861227]
[1743530345894,2.14,609.57,608.91,1.21981104]
[1743530347701,2.14,609.57,608.87,1.21981104]
[1743530349796,2.14,609.57,608.84,1.21981104]
[1743530353000,2.14,609.57,608.92,1.21981104]
[1743530354604,2.14,609.57,608.93,1.21981104]
[1743530356401,2.14,609.57,608.86,1.21981104]
[1743530358606,2.14,609.57,608.9,1.21981104]
[1743530359301,0.914,609.57,608.9,1.21981104]
[1743530360505,0.914,609.57,608.76,1.21981104]
[1743530362409,0.914,609.57,608.86,1.21981104]
[1743530364007,0.914,609.57,608.85,1.21981104]
[1743530366009,0.914,609.57,608.76,1.21981104]
[1743530368717,0.914,609.57,608.8,1.21981104]
[1743530370521,2.31255521,609.57,608.8,1.21981104]
[1743530370718,0.914,609.57,608.8,1.21981104]
[1743530370921,0.914,609.57,608.9,1.21981104]
[1743530370922,1.39933888,609.56,608.9,1.21981104]
[1743530371219,1.39933888,609.55,608.9,1.21981104]
[1743530371417,1.39933888,609.54,608.9,1.21981104]
[1743530371614,1.39933888,609.53,608.9,1.21981104]
[1743530371815,1.39933888,609.56,608.9,1.21981104]
[1743530372118,1.39933888,609.55,608.9,1.21981104]
[1743530372312,1.39933888,609.54,608.9,1.21981104]
[1743530372512,1.39933888,609.53,608.9,1.21981104]
[1743530372717,1.39933888,609.52,608.9,1.21981104]
[1743530373017,1.39933888,609.51,608.9,1.21981104]
[1743530373219,0.914,609.57,608.9,1.21981104]
[1743530373413,0.914,609.57,608.62,0.32861227]
[1743530373414,0.914,609.57,608.92,1.21981104]
[1743530375721,0.914,609.57,608.97,1.21981104]
[1743530377921,0.914,609.57,608.93,1.21981104]
[1743530380221,1.39933888,609.56,608.91,1.21981104]
[1743530380425,1.39933888,609.55,608.91,1.21981104]
[1743530380621,1.39933888,609.54,608.91,1.21981104]
[1743530380826,1.39933888,609.53,608.91,1.21981104]
[1743530381026,1.39933888,609.52,608.91,1.21981104]
[1743530381221,1.896,609.57,608.91,1.21981104]
[1743530381222,1.39933888,609.51,608.91,1.21981104]
[1743530381429,1.39933888,609.5,608.91,1.21981104]
[1743530381626,1.39933888,609.49,608.91,1.21981104]
[1743530381825,1.39933888,609.48,608.91,1.21981104]
[1743530382027,1.39933888,609.47,608.91,1.21981104]
[1743530382228,1.896,609.57,608.91,1.21981104]
[1743530382423,1.40004022,609.56,608.91,1.21981104]
[1743530382625,1.40004022,609.55,608.72,1.21981104]
[1743530382826,1.40004022,609.54,608.72,1.21981104]
[1743530383123,1.40004022,609.53,608.72,1.21981104]
[1743530383325,1.40004022,609.52,608.72,1.21981104]
[1743530383524,1.896,609.57,608.72,1.21981104]
[1743530383525,1.40004022,609.51,608.72,1.21981104]
[1743530383723,1.896,609.57,608.72,1.21981104]
[1743530383724,1.40004022,609.5,608.72,1.21981104]
[1743530383927,1.40004022,609.49,608.72,1.21981104]
[1743530384129,1.40004022,609.48,608.72,1.21981104]
[1743530384324,1.40004022,609.47,608.72,1.21981104]
[1743530384531,1.40004022,609.46,608.72,1.21981104]
[1743530384833,1.40004022,609.45,608.89,1.21981104]
[1743530385126,1.40004022,609.44,608.89,1.21981104]
[1743530385330,1.40004022,609.43,608.89,1.21981104]
[1743530385530,1.40004022,609.42,608.89,1.21981104]
[1743530385726,1.40004022,609.41,608.89,1.21981104]
[1743530385934,1.40004022,609.4,608.89,1.21981104]
[1743530386126,1.40004022,609.39,608.89,1.21981104]
[1743530386330,1.40004022,609.38,608.89,1.21981104]
[1743530386529,1.40004022,609.37,608.89,1.21981104]
[1743530386724,1.40004022,609.36,608.89,1.21981104]
[1743530386933,1.40004022,609.35,608.76,1.21981104]
[1743530387130,1.40004022,609.34,608.76,1.21981104]
[1743530387327,1.40004022,609.33,608.76,1.21981104]
[1743530387527,1.40004022,609.52,608.76,1.21981104]
[1743530387727,1.40004022,609.51,608.76,1.21981104]
[1743530387932,1.40004022,609.5,608.76,1.21981104]
[1743530388132,1.40004022,609.49,608.76,1.21981104]
[1743530388335,1.40004022,609.48,608.76,1.21981104]
[1743530388635,1.39927642,609.47,608.76,1.21981104]
[1743530388834,1.39927642,609.46,608.76,1.21981104]
[1743530389035,1.39927642,609.45,608.76,1.21981104]
[1743530389239,1.39927642,609.44,608.76,1.21981104]
[1743530389441,1.39927642,609.43,608.76,1.21981104]
[1743530389637,1.39927642,609.42,608.66,1.21981104]
[1743530389841,1.39927642,609.41,608.66,1.21981104]
[1743530390041,1.39927642,609.4,608.66,1.21981104]
[1743530390235,1.39927642,609.46,608.66,1.21981104]
[1743530390439,1.39927642,609.45,608.66,1.21981104]
[1743530390641,1.39927642,609.44,608.66,1.21981104]
[1743530390840,1.39927642,609.43,608.66,1.21981104]
[1743530391038,1.39927642,609.42,608.66,1.21981104]
[1743530391240,1.39927642,609.41,608.66,1.21981104]
[1743530391437,1.39927642,609.4,608.62,1.54842331]
[1743530391638,1.39927642,609.46,608.62,1.54842331]
[1743530391837,1.39927642,609.45,608.62,1.54842331]
[1743530392038,1.39927642,609.44,608.62,1.54842331]
[1743530392236,1.39927642,609.43,608.62,1.54842331]
[1743530392537,1.39927642,609.42,608.62,1.54842331]
[1743530392746,1.39927642,609.5,608.62,1.54842331]
[1743530392935,1.39927642,609.49,608.62,1.54842331]
[1743530393135,1.39927642,609.48,608.62,1.54842331]
[1743530393334,1.39927642,609.47,608.62,1.54842331]
[1743530393635,1.39927642,609.46,608.62,0.32861227]
[1743530393836,1.39927642,609.45,608.62,0.32861227]
[1743530394035,1.39927642,609.44,608.62,0.32861227]
[1743530394239,1.39927642,609.43,608.62,0.32861227]
[1743530394440,1.39927642,609.42,608.62,0.32861227]
[1743530394642,1.39843439,609.43,608.62,0.32861227]
[1743530394843,1.39843439,609.42,608.62,0.32861227]
[1743530395044,1.39843439,609.43,608.62,0.32861227]
[1743530395436,1.096,609.44,608.62,0.32861227]
[1743530400647,1.096,609.44,608.73,1.21981104]
[1743530402750,1.096,609.44,608.64,1.21981104]
[1743530402953,1.096,609.44,608.65,0.32859607]
[1743530404949,2.149,609.44,608.65,0.32859607]
[1743530405150,2.149,609.44,608.8,1.21981104]
[1743530406850,2.149,609.44,608.85,1.21981104]
[1743530409652,2.149,609.44,608.83,1.21981104]
[1743530411253,2.149,609.44,608.9,1.21981104]
[1743530413366,2.149,609.44,608.99,1.21981104]
[1743530414759,2.149,609.44,608.89,1.21981104]
[1743530414954,2.149,609.44,608.89,1.54827759]
[1743530417455,2.149,609.44,608.89,0.32846655]
[1743530422671,2.149,609.44,608.9,1.21981104]
[1743530424672,2.149,609.44,608.9,1.54827219]
[1743530425170,2.149,609.44,608.9,0.32846115]
[1743530427582,2.149,609.44,609.17,1.21981104]
[1743530427976,1.096,609.44,609.17,1.21981104]
[1743530429681,1.096,609.44,609.12,1.21981104]
[1743530431882,1.096,609.44,608.9,0.32846115]
[1743530431883,1.096,609.44,609.26,1.21981104]
[1743530434286,1.096,609.44,609.24,1.21981104]
[1743530436789,1.096,609.44,609.26,1.21981104]
[1743530438387,1.219,609.25,608.92,1.21981104]
[1743530438587,2.396,609.25,608.92,1.21981104]
[1743530439694,2.396,609.25,608.94,1.21981104]
[1743530441299,2.396,609.25,608.9,0.32846115]
[1743530442502,1.177,609.25,608.9,0.32846115]
[1743530442702,1.096,609.44,608.9,0.32846115]
[1743530461710,2.28,609.44,608.9,0.32846115]
[1743530462509,2.28,609.44,608.94,1.21981104]
[1743530462813,1.184,609.44,608.94,1.21981104]
[1743530465410,1.184,609.44,608.9,0.32846115]
[1743530466412,2.049,609.44,608.9,0.32846115]
[1743530469918,2.049,609.44,608.8,1.21981104]
[1743530471321,2.049,609.44,608.74,1.21981104]
[1743530473122,2.049,609.44,608.68,1.21981104]
[1743530474225,2.049,609.44,608.69,0.32857447]
[1743530475019,2.049,609.44,608.71,1.21981104]
[1743530475220,2.049,609.44,608.72,0.32855828]
[1743530476624,2.049,609.44,608.97,1.21981104]
[1743530479124,2.049,609.44,608.88,1.21981104]
[1743530481330,2.049,609.44,608.89,1.21981104]
[1743530484829,2.049,609.44,608.72,0.32855828]
[1743530493144,2.049,609.44,608.75,1.21981104]
[1743530495646,2.049,609.44,608.72,0.32855828]
[1743530496051,2.049,609.44,608.35,1.21981104]
[1743530496447,2.049,609.44,608.36,0.32875271]
[1743530497655,2.049,609.44,608.57,1.21981104]
[1743530498957,2.049,609.44,608.59,1.21981104]
[1743530500059,2.049,609.44,608.58,1.21981104]
[1743530501660,2.049,609.44,608.49,1.21981104]
[1743530501861,2.049,609.44,608.49,1.54849351]
[1743530502953,2.049,609.44,608.49,0.32868247]
[1743530515265,2.049,609.44,608.51,1.21981104]
[1743530517467,2.049,609.44,608.63,1.21981104]
[1743530520168,2.049,609.44,608.72,1.21981104]
[1743530523076,2.049,609.44,608.61,1.21981104]
[1743530523974,0.28568966,609.43,608.61,1.21981104]
[1743530524776,0.28568966,609.43,608.66,1.21981104]
[1743530527177,1.196,609.42,608.49,0.32868247]
[1743530527379,2.379,609.42,608.49,0.32868247]
[1743530529774,0.2857354,609.41,608.49,0.32868247]
[1743530532580,2.379,609.42,608.49,0.32868247]
[1743530533083,0.28573423,609.4,608.49,0.32868247]
[1743530538592,2.379,609.42,608.49,0.32868247]
[1743530539093,0.28576473,609.39,608.49,0.32868247]
[1743530544596,1.183,609.42,608.49,0.32868247]
[1743530544993,0.28573892,609.38,608.49,0.32868247]
[1743530545702,0.825,609.37,608.49,0.32868247]
[1743530551904,0.2857354,609.36,608.49,0.32868247]
[1743530553013,0.825,609.37,608.49,0.32868247]
[1743530555610,0.28569904,609.47,608.49,0.32868247]
[1743530556614,1.39430176,609.68,608.49,0.32868247]